bitfinex/quotes_ETHUSD_20230905
["timestamp","ask_amount","ask_price","bid_price","bid_amount"]
[1693923080452,0.65798709,1632.5,1632.4,23.92494039]
[1693923081562,0.65798709,1632.5,1632.4,22.64316373]
[1693923082435,0.65798709,1632.5,1632.4,21.04089216]
[1693923082653,0.65798709,1632.5,1632.4,22.64357342]
[1693923082954,0.65798709,1632.5,1632.4,25.9545401]
[1693923083663,0.65798709,1632.5,1632.4,24.35185884]
[1693923084358,0.65798709,1632.5,1632.4,26.27461013]
[1693923084556,0.101,1632.8,1632.4,26.27461013]
[1693923084845,0.101,1632.6,1632.5,3.98107216]
[1693923085135,0.101,1632.6,1632.5,23.73606274]
[1693923085435,0.101,1632.6,1632.5,31.65881403]
[1693923085638,0.101,1632.6,1632.5,39.92241048]
[1693923085839,0.101,1632.7,1632.6,0.202]
[1693923086141,0.101,1632.7,1632.6,34.48197497]
[1693923086303,0.101,1632.7,1632.6,36.45313497]
[1693923086724,2.1838,1632.9,1632.8,22.38332]
[1693923086926,2.1838,1632.9,1632.8,23.44860886]
[1693923087126,2.1838,1632.9,1632.8,25.04639216]
[1693923087328,2.1838,1632.9,1632.8,27.69591257]
[1693923087538,2.1838,1632.9,1632.8,30.37328849]
[1693923087726,2.1838,1632.9,1632.8,27.72376808]
[1693923087930,2.1838,1632.9,1632.8,30.37328849]
[1693923089839,2.1838,1632.9,1632.8,31.69128849]
[1693923090040,0.101,1632.9,1632.8,32.04176808]
[1693923090243,0.101,1632.9,1632.8,37.98281257]
[1693923091146,0.101,1632.9,1632.8,34.78454582]
[1693923091709,0.101,1632.9,1632.8,37.98281257]
[1693923092711,4.3644,1633.1,1632.8,37.98281257]
[1693923092942,4.3644,1633.1,1632.9,5.30808816]
[1693923093246,4.3644,1633.1,1633.0,18.37107]
[1693923093448,4.3644,1633.1,1633.0,19.43635886]
[1693923093651,4.3644,1633.1,1633.0,21.03414216]
[1693923093818,1.52544083,1633.1,1633.0,21.03414216]
[1693923094448,1.52544083,1633.1,1633.0,23.67915816]
[1693923094651,1.52544083,1633.1,1633.0,25.05743874]
[1693923094840,1.52544083,1633.1,1633.0,22.41242274]
[1693923095719,0.101,1633.4,1633.3,0.64470606]
[1693923095921,3.16801426,1633.4,1633.3,0.64470606]
[1693923096152,3.16801426,1633.4,1633.3,1.70999492]
[1693923098446,3.16801426,1633.4,1633.3,3.62858606]
[1693923100424,2.03243499,1633.4,1633.3,3.62858606]
[1693923101665,0.32905402,1633.4,1633.3,3.62858606]
[1693923101867,6.45124402,1633.4,1633.3,3.62858606]
[1693923102661,6.45124402,1633.4,1633.3,0.64470606]
[1693923103461,6.45124402,1633.4,1633.1,12.24613]
[1693923103631,6.45124402,1633.4,1633.1,13.60857106]
[1693923104433,0.32905402,1633.4,1633.1,13.60857106]
[1693923104632,14.04251,1633.5,1633.3,2.23980603]
[1693923104633,7.92046,1633.5,1633.3,2.23980603]
[1693923104829,4.86551426,1633.5,1633.3,8.36224603]
[1693923105033,4.86551426,1633.5,1633.4,1.06459329]
[1693923105339,3.16801426,1633.5,1633.4,1.06459329]
[1693923105833,0.89697275,1633.5,1633.4,1.06459329]
[1693923106761,4.3053,1633.6,1633.5,2.69091825]
[1693923106960,4.3053,1633.6,1633.5,5.99532665]
[1693923107162,6.22212,1633.7,1633.5,5.99532665]
[1693923107364,7.93360547,1633.7,1633.6,2.98443624]
[1693923109170,7.93360547,1633.7,1633.6,3.3044084]
[1693923109671,7.93360547,1633.7,1633.6,1.06459329]
[1693923110467,1.81248547,1633.7,1633.6,1.06459329]
[1693923110966,1.81248547,1633.7,1633.6,3.3044084]
[1693923111781,0.101,1633.7,1633.6,3.3044084]
[1693923112276,0.101,1633.7,1633.6,1.06459329]
[1693923113772,3.916,1633.8,1633.7,0.202]
[1693923113943,5.62658914,1633.8,1633.7,2.44133708]
[1693923114270,0.101,1633.8,1633.7,3.50593037]
[1693923115873,8.21702,1634.0,1633.7,3.50593037]
[1693923116055,9.92664385,1634.0,1633.9,1.91921771]
[1693923116555,7.82964385,1634.0,1633.9,1.91921771]
[1693923116872,7.82971385,1634.0,1633.9,1.91921771]
[1693923117064,12.34044,1634.1,1633.9,1.91921771]
[1693923117248,14.05040916,1634.1,1633.9,1.91921771]
[1693923117677,14.53094646,1634.1,1633.9,1.91921771]
[1693923117854,8.41113646,1634.1,1633.9,1.91921771]
[1693923118052,8.41113646,1634.1,1633.8,3.30393037]
[1693923118053,8.41113646,1634.1,1634.0,3.30393037]
[1693923118251,7.93059916,1634.1,1634.0,3.30393037]
[1693923118585,7.2920952,1634.1,1634.0,3.30393037]
[1693923118742,7.2920952,1634.1,1634.0,2.23933708]
[1693923118942,13.4117252,1634.1,1634.0,2.23933708]
[1693923119380,13.4117252,1634.1,1634.0,1.06459329]
[1693923119750,13.4117252,1634.1,1633.9,2.23933708]
[1693923120582,12.23926,1634.1,1633.9,2.23933708]
[1693923120951,0.22919657,1634.0,1633.9,2.23933708]
[1693923121264,13.78709657,1634.0,1633.9,3.30393037]
[1693923121779,13.78709657,1634.0,1633.9,2.23933708]
[1693923122550,20.38704657,1634.0,1633.9,1.06459329]
[1693923122750,14.26709657,1634.0,1633.8,3.30393037]
[1693923122950,3.83670466,1633.9,1633.8,2.23933708]
[1693923123167,19.14435892,1633.9,1633.8,1.06427145]
[1693923125785,16.87387826,1633.9,1633.8,1.06427145]
[1693923126688,19.17326109,1633.9,1633.8,1.06427145]
[1693923126884,19.17326109,1633.9,1633.7,2.23933708]
[1693923127189,3.06701426,1633.8,1633.7,2.23933708]
[1693923127691,22.74711426,1633.8,1633.7,2.98320732]
[1693923128066,26.22711426,1633.8,1633.7,2.98320732]
[1693923128388,29.96166577,1633.8,1633.7,2.66346316]
[1693923128552,29.96166577,1633.8,1633.7,1.06451288]
[1693923128759,29.96166577,1633.8,1633.5,1.91893587]
[1693923129058,29.96166577,1633.8,1633.4,1.91893587]
[1693923129059,1.318,1633.5,1633.4,1.91893587]
[1693923129390,27.54847426,1633.5,1633.4,1.0646025]
[1693923129589,30.91548869,1633.5,1633.4,0.0907025]
[1693923129762,30.91548869,1633.5,1633.3,1.91893587]
[1693923129956,4.86501426,1633.4,1633.3,1.91893587]
[1693923130163,23.23158426,1633.4,1633.2,1.91893587]
[1693923130770,1.318,1633.3,1633.2,1.91893587]
[1693923131006,4.86501426,1633.3,1633.2,1.91893587]
[1693923131295,10.98758426,1633.3,1633.2,1.91893587]
[1693923131588,17.11015426,1633.3,1633.2,1.91893587]
[1693923131789,17.73000955,1633.3,1633.2,1.91893587]
[1693923131992,25.17057955,1633.3,1633.2,1.91893587]
[1693923132159,25.17057955,1633.3,1633.0,2.23933708]
[1693923132160,25.17057955,1633.3,1633.1,1.91893587]
[1693923132366,1.798,1633.2,1633.1,1.91893587]
[1693923132676,17.11089426,1633.2,1633.1,1.91893587]
[1693923132983,19.66656273,1633.2,1633.1,1.91893587]
[1693923133505,19.66656273,1633.2,1633.0,1.91893587]
[1693923133713,3.06701426,1633.1,1633.0,1.91893587]
[1693923133992,16.63165426,1633.1,1633.0,1.91893587]
[1693923134163,23.23497426,1633.1,1633.0,1.91893587]
[1693923134359,26.47433253,1633.1,1632.9,1.91893587]
[1693923134691,20.16907,1633.0,1632.8,1.91893587]
[1693923134895,4.38501426,1632.9,1632.8,1.91893587]
[1693923135391,10.50908426,1632.9,1632.8,1.91893587]
[1693923135573,9.19108426,1632.9,1632.8,1.91893587]
[1693923136697,3.06701426,1632.9,1632.8,1.91893587]
[1693923137263,3.06701426,1632.9,1632.7,1.91893587]
[1693923138286,3.06701426,1632.9,1632.8,1.60103221]
[1693923140300,9.19108426,1632.9,1632.8,1.60103221]
[1693923140602,23.33272482,1632.9,1632.8,0.96049185]
[1693923140897,23.33272482,1632.9,1632.8,1.6008527]
[1693923140898,23.81272482,1632.9,1632.8,1.6008527]
[1693923141461,23.81272482,1632.9,1632.8,0.64036085]
[1693923143515,22.10144739,1632.9,1632.8,0.64036085]
[1693923143720,20.78344739,1632.9,1632.8,0.64036085]
[1693923145384,20.78344739,1632.9,1632.7,1.6008527]
[1693923148319,20.78344739,1632.9,1632.8,0.64036085]
[1693923151617,20.78344739,1632.9,1632.8,0.64036085]
[1693923158616,20.14454321,1632.9,1632.8,0.64036085]
[1693923160611,19.00871384,1632.9,1632.8,0.64036085]
[1693923161333,19.00871384,1632.9,1632.8,1.6008527]
[1693923161840,19.00871384,1632.9,1632.8,1.7051604]
[1693923161992,19.00871384,1632.9,1632.8,0.64036085]
[1693923162535,19.00871384,1632.9,1632.8,1.6008527]
[1693923163399,19.00871384,1632.9,1632.8,2.0252914]
[1693923164108,19.00871384,1632.9,1632.8,0.96049185]
[1693923164311,19.00871384,1632.9,1632.8,2.24109833]
[1693923165411,19.00871384,1632.9,1632.8,2.34540603]
[1693923165614,19.00871384,1632.9,1632.8,1.28060648]
[1693923168336,19.00871384,1632.9,1632.8,2.88163869]
[1693923168534,19.00871384,1632.9,1632.8,1.60103221]
[1693923171443,19.00871384,1632.9,1632.8,1.06479955]
[1693923172419,19.00871384,1632.9,1632.8,1.91893587]
[1693923173221,19.00871384,1632.9,1632.8,2.98373542]
[1693923173445,19.00871384,1632.9,1632.8,1.91893587]
[1693923174946,19.00871384,1632.9,1632.8,2.98373542]
[1693923175246,21.04138522,1632.9,1632.8,2.98373542]
[1693923175445,21.04138522,1632.9,1632.8,1.91893587]
[1693923175747,22.35938522,1632.9,1632.8,1.06479955]
[1693923175910,22.35938522,1632.9,1632.7,1.91893587]
[1693923176116,1.318,1632.8,1632.7,1.91893587]
[1693923176310,25.47427278,1632.8,1632.7,1.91893587]
[1693923177455,25.47427278,1632.8,1632.7,2.98373542]
[1693923178257,25.47427278,1632.8,1632.7,1.91893587]
[1693923178444,23.23833426,1632.8,1632.7,2.98373542]
[1693923178846,23.23833426,1632.8,1632.7,1.91893587]
[1693923179521,23.23833426,1632.8,1632.7,2.67283966]
[1693923179715,23.23833426,1632.8,1632.7,1.06479955]
[1693923179949,23.23833426,1632.8,1632.7,1.60805336]
[1693923181454,23.23833426,1632.8,1632.7,2.67285291]
[1693923181657,23.23833426,1632.8,1632.7,3.95946157]
[1693923181658,26.37784182,1632.8,1632.7,3.95946157]
[1693923181822,26.37784182,1632.8,1632.7,2.89466202]
[1693923182450,26.37784182,1632.8,1632.7,2.35140821]
[1693923182757,26.37784182,1632.8,1632.7,1.28660866]
[1693923183323,26.37784182,1632.8,1632.7,2.02984851]
[1693923183730,26.37784182,1632.8,1632.7,0.96504896]
[1693923184351,26.37784182,1632.8,1632.7,0.6433819]
[1693923185356,26.37784182,1632.8,1632.7,1.06490131]
[1693923185556,26.37784182,1632.8,1632.6,2.67333217]
[1693923185719,20.17132,1632.8,1632.7,1.06490131]
[1693923186123,20.17132,1632.8,1632.6,2.67333217]
[1693923186337,20.17132,1632.8,1632.5,5.52723086]
[1693923186547,20.17132,1632.8,1632.6,1.06489826]
[1693923187326,20.17132,1632.8,1632.5,3.9188]
[1693923192169,3.06701426,1632.7,1632.5,3.9188]
[1693923192376,6.12519,1632.6,1632.5,2.2725]
[1693923192572,6.12519,1632.6,1632.5,3.33739561]
[1693923196092,12.25038,1632.6,1632.5,3.33739561]
[1693923196785,15.79739426,1632.6,1632.5,3.33739561]
[1693923199558,0.48,1632.6,1632.5,3.33739561]
[1693923199890,6.12519,1632.6,1632.5,4.63460016]
[1693923201347,6.12519,1632.6,1632.5,3.99121826]
[1693923201548,6.12519,1632.6,1632.5,4.63460016]
[1693923204583,6.12519,1632.6,1632.5,3.98077751]
[1693923206293,6.12519,1632.6,1632.5,3.33739561]
[1693923207469,6.12519,1632.6,1632.5,3.98077751]
[1693923208693,6.12519,1632.6,1632.5,3.33739561]
[1693923209062,6.12519,1632.6,1632.5,3.98077751]
[1693923210699,21.92258426,1632.6,1632.5,1.06489561]
[1693923210922,23.76011126,1632.6,1632.4,0.6433819]
[1693923211126,17.63492126,1632.6,1632.4,1.70827751]
[1693923213465,3.06701426,1632.5,1632.4,1.70827751]
[1693923213672,21.92372426,1632.5,1632.4,1.06489561]
[1693923213983,24.43153539,1632.5,1632.4,1.06489561]
[1693923215406,24.43153539,1632.5,1632.3,2.8548819]
[1693923215594,24.43153539,1632.5,1632.4,1.06499172]
[1693923216176,21.92372426,1632.5,1632.4,1.06499172]
[1693923218725,15.79815426,1632.5,1632.4,1.06499172]
[1693923225935,23.24172426,1632.5,1632.4,1.06499172]
[1693923226144,23.24172426,1632.5,1632.2,0.6433819]
[1693923226438,12.25264,1632.3,1632.1,4.5911819]
[1693923226645,12.25264,1632.3,1632.1,2.3054]
[1693923227003,18.37896,1632.3,1632.1,2.3054]
[1693923227826,21.44597426,1632.3,1632.1,2.3054]
[1693923228133,22.76397426,1632.3,1632.1,2.3054]
[1693923228340,21.44597426,1632.3,1632.1,2.3054]
[1693923228501,15.31965426,1632.3,1632.1,2.3054]
[1693923229517,9.19333426,1632.3,1632.1,2.3054]
[1693923233611,15.31965426,1632.3,1632.1,2.3054]
[1693923245378,21.44597426,1632.3,1632.1,2.3054]
[1693923245575,24.56739293,1632.3,1632.1,2.3054]
[1693923245872,24.56739293,1632.3,1632.0,1.6052]
[1693923246167,3.06701426,1632.2,1632.0,3.8443]
[1693923246363,12.25414,1632.1,1632.0,2.2391]
[1693923246670,13.78625543,1632.1,1632.0,1.06521544]
[1693923247661,13.78625543,1632.1,1631.9,2.8824819]
[1693923247862,13.78625543,1632.1,1632.0,1.06521207]
[1693923251674,13.78625543,1632.1,1632.0,1.70859397]
[1693923251973,12.25414,1632.1,1632.0,1.70859397]
[1693923254552,15.32115426,1632.1,1632.0,1.70859397]
[1693923258275,21.92822426,1632.1,1632.0,1.70859397]
[1693923258955,21.92822426,1632.1,1632.0,0.6433819]
[1693923262601,23.24622426,1632.1,1631.8,1.60843086]
[1693923262804,7.18963669,1632.0,1631.8,1.70870374]
[1693923262970,12.25564,1631.9,1631.8,1.70870374]
[1693923263385,15.32265426,1631.9,1631.8,1.70870374]
[1693923263584,23.24847426,1631.9,1631.8,1.06532184]
[1693923263880,26.46653693,1631.9,1631.7,1.70870374]
[1693923264085,3.06701426,1631.8,1631.7,1.70870374]
[1693923264406,16.64141426,1631.8,1631.7,1.06532184]
[1693923264702,23.24961426,1631.8,1631.7,1.06532184]
[1693923265674,23.24961426,1631.8,1631.6,0.1]
[1693923265871,15.90010143,1631.7,1631.6,0.1]
[1693923266071,25.57568569,1631.7,1631.6,1.16549531]
[1693923267005,28.57568569,1631.7,1631.6,0.1]
[1693923270798,28.57568569,1631.7,1631.6,1.16557323]
[1693923271490,29.74125869,1631.7,1631.6,1.16557323]
[1693923271910,29.74125869,1631.7,1631.6,0.1]
[1693923272288,29.74125869,1631.7,1631.6,1.16558688]
[1693923272580,29.74125869,1631.7,1631.6,0.1]
[1693923273280,29.74125869,1631.7,1631.5,0.1]
[1693923273281,32.74125869,1631.7,1631.5,0.1]
[1693923273504,11.13914013,1631.6,1631.5,0.1]
[1693923273719,29.52599013,1631.6,1631.5,0.1]
[1693923277513,28.88653253,1631.6,1631.5,0.1]
[1693923281732,27.74973378,1631.6,1631.5,0.1]
[1693923289838,27.93272461,1631.6,1631.5,0.1]
[1693923292408,28.89372198,1631.6,1631.5,0.1]
[1693923298727,30.6485,1631.4,1631.2,1.6768]
[1693923298943,7.86501426,1631.3,1631.2,1.6768]
[1693923299236,26.25525426,1631.3,1631.1,0.1]
[1693923299438,19.70935,1631.2,1631.1,0.1]
[1693923299611,23.25636426,1631.2,1631.1,1.1659889]
[1693923300025,23.25636426,1631.2,1631.1,0.1]
[1693923301563,26.49500869,1631.2,1631.1,0.1]
[1693923303466,29.49500869,1631.2,1631.1,0.1]
[1693923304551,29.49500869,1631.2,1631.1,1.16601488]
[1693923305355,29.49500869,1631.2,1631.1,0.1]
[1693923305839,29.49500869,1631.2,1631.0,0.1]
[1693923306133,27.88900513,1631.1,1631.0,0.1]
[1693923306571,29.20700513,1631.1,1631.0,0.1]
[1693923318881,29.70431848,1631.1,1631.0,0.1]
[1693923320067,29.89020988,1631.1,1631.0,0.1]
[1693923320583,1.318,1631.0,1630.9,0.1]
[1693923320902,27.56563525,1631.0,1630.8,0.1]
[1693923321104,26.25975426,1630.9,1630.8,0.1]
[1693923322107,28.71468526,1630.9,1630.8,0.1]
[1693923328531,24.46175426,1630.9,1630.8,0.1]
[1693923329924,24.94175426,1630.9,1630.8,0.1]
[1693923330609,26.25975426,1630.9,1630.8,0.1]
[1693923332109,24.94175426,1630.9,1630.8,0.1]
[1693923333399,24.94572344,1630.9,1630.8,0.1]
[1693923334512,12.26712918,1630.9,1630.8,0.1]
[1693923335021,6.13554918,1630.9,1630.8,0.1]
[1693923335733,12.26712918,1630.9,1630.8,0.1]
[1693923337020,0.00396918,1630.9,1630.8,0.1]
[1693923337221,0.00396918,1630.9,1630.8,1.16603356]
[1693923337533,0.00396918,1630.9,1630.8,1.48877511]
[1693923337736,0.00396918,1630.9,1630.8,3.73437511]
[1693923339309,6.13123,1631.0,1630.8,3.73437511]
[1693923339516,6.13123,1631.0,1630.8,2.66834155]
[1693923340435,6.13123,1631.0,1630.9,1.06598852]
[1693923340610,6.13059,1631.2,1630.9,1.7557712]
[1693923340818,6.13086,1631.1,1630.9,1.7557712]
[1693923341521,0.00372069,1631.0,1630.9,1.7557712]
[1693923341727,0.00372069,1631.0,1630.9,2.82174336]
[1693923342428,12.2613,1631.2,1630.9,2.82174336]
[1693923342630,12.2613,1631.2,1630.9,1.7557712]
[1693923343399,0.00372851,1631.1,1630.9,1.7557712]
[1693923344036,6.13458851,1631.1,1630.9,1.7557712]
[1693923345110,0.00372851,1631.1,1630.9,1.7557712]
[1693923345410,12.26122,1631.2,1630.9,1.7557712]
[1693923346522,0.00372851,1631.1,1630.9,1.7557712]
[1693923347143,0.00372851,1631.1,1630.9,0.4377712]
[1693923347446,12.26122,1631.2,1630.9,0.4377712]
[1693923348432,12.26122,1631.2,1630.8,4.26994155]
[1693923348433,0.00372851,1631.1,1630.8,4.26994155]
[1693923348631,12.26567851,1631.1,1630.8,4.26994155]
[1693923350642,18.39678851,1631.1,1630.8,3.9472]
[1693923351909,21.46380277,1631.1,1630.8,3.9472]
[1693923353061,21.46380277,1631.1,1630.8,2.3456]
[1693923355067,4.38501426,1631.0,1630.8,2.3456]
[1693923355364,12.26685031,1630.9,1630.8,2.3456]
[1693923355730,25.54178403,1630.9,1630.8,2.3456]
[1693923356156,19.41020403,1630.9,1630.8,2.3456]
[1693923356746,25.54178403,1630.9,1630.8,2.3456]
[1693923357062,18.09220403,1630.9,1630.8,2.3456]
[1693923358061,19.41020403,1630.9,1630.8,2.3456]
[1693923358859,25.54178403,1630.9,1630.8,2.3456]
[1693923360640,6.13527031,1630.9,1630.8,2.3456]
[1693923361661,12.26685031,1630.9,1630.8,2.3456]
[1693923366077,6.13527031,1630.9,1630.8,2.3456]
[1693923370500,12.26685031,1630.9,1630.8,2.3456]
[1693923381272,0.00369031,1630.9,1630.8,2.3456]
[1693923381508,0.00369031,1630.9,1630.8,3.816578]
[1693923381807,0.00369031,1630.9,1630.8,16.080478]
[1693923381980,0.00369031,1630.9,1630.8,22.82542775]
[1693923382182,0.00369031,1630.9,1630.8,23.89135746]
[1693923382384,12.26052,1631.3,1630.8,23.89135746]
[1693923382585,6.13059,1631.2,1630.9,2.38913575]
[1693923382800,6.13059,1631.2,1630.9,10.21245575]
[1693923385020,12.26118,1631.2,1630.9,4.08103575]
[1693923385186,12.26118,1631.2,1630.9,1.6919]
[1693923385536,0.00355017,1631.1,1630.9,1.6919]
[1693923385700,6.13444017,1631.1,1630.9,1.6919]
[1693923386100,6.13444017,1631.1,1630.8,16.080188]
[1693923389535,0.00354234,1631.0,1630.8,16.080188]
[1693923389831,0.00354234,1631.0,1630.9,1.6080188]
[1693923394610,0.00354234,1631.0,1630.9,7.7395988]
[1693923403952,0.00354234,1631.0,1630.9,13.8711788]
[1693923404152,0.00354234,1631.0,1630.9,20.0027588]
[1693923404348,0.00354234,1631.0,1630.9,21.6988588]
[1693923409840,0.00354234,1631.0,1630.9,7.7395988]
[1693923410033,0.00354234,1631.0,1630.9,12.26316]
[1693923410235,0.00354234,1631.0,1630.9,6.13158]
[1693923411553,0.00354234,1631.0,1630.9,12.26316]
[1693923414148,0.00354234,1631.0,1630.9,18.39474]
[1693923415254,0.00354234,1631.0,1630.9,19.00773975]
[1693923415449,0.00354234,1631.0,1630.9,21.92119773]
[1693923422058,0.00354234,1631.0,1630.9,21.30819798]
[1693923423497,0.00354234,1631.0,1630.9,12.26316]
[1693923423705,0.00354234,1631.0,1630.8,3.9951]
[1693923424007,0.00354234,1631.0,1630.8,6.23192]
[1693923424008,6.13474234,1631.0,1630.8,6.23192]
[1693923424504,0.00354234,1631.0,1630.8,12.36387]
[1693923426689,0.00354234,1631.0,1630.8,13.96277998]
[1693923426877,0.00354234,1631.0,1630.8,16.26445517]
[1693923427498,0.00354234,1631.0,1630.8,16.26446281]
[1693923427696,0.00354234,1631.0,1630.8,22.39641281]
[1693923427910,0.00354234,1631.0,1630.8,20.79749519]
[1693923428267,0.00354234,1631.0,1630.8,22.48509519]
[1693923428581,0.00354234,1631.0,1630.9,2.24850952]
[1693923428777,0.00354234,1631.0,1630.9,20.64324952]
[1693923428981,0.00354234,1631.0,1630.9,23.94044653]
[1693923430570,0.00354234,1631.0,1630.9,22.87454952]
[1693923430770,0.00354234,1631.0,1630.9,23.94043936]
[1693923431705,0.00354234,1631.0,1630.9,22.87454952]
[1693923435806,0.00354234,1631.0,1630.9,14.49446]
[1693923436011,0.00354234,1631.0,1630.9,6.13158]
[1693923437176,0.00354234,1631.0,1630.8,12.36354]
[1693923437372,0.00354234,1631.0,1630.8,6.23177]
[1693923438271,6.13478234,1631.0,1630.8,0.1]
[1693923438915,8.12760359,1631.0,1630.8,0.1]
[1693923439228,14.25884359,1631.0,1630.8,0.1]
[1693923454099,12.26602234,1631.0,1630.8,6.23194]
[1693923454305,0.00354234,1631.0,1630.8,18.49584]
[1693923455011,0.00354234,1631.0,1630.8,19.10883975]
[1693923466020,0.00354234,1631.0,1630.8,22.17585401]
[1693923466360,0.00354234,1631.0,1630.9,22.54332515]
[1693923466559,0.00355017,1631.1,1630.9,24.81202515]
[1693923467044,0.00355017,1631.1,1630.9,26.45932515]
[1693923467428,0.00342514,1631.0,1630.9,26.45932515]
[1693923468064,0.00342514,1631.0,1630.9,29.52633941]
[1693923468271,0.00342514,1631.0,1630.9,36.36296837]
[1693923468434,0.00342514,1631.0,1630.9,39.0274642]
[1693923469060,0.00342514,1631.0,1630.9,39.74421694]
[1693923469325,0.00355017,1631.1,1630.9,39.74421694]
[1693923469529,0.00355017,1631.1,1631.0,23.68602169]
[1693923469748,0.00355017,1631.1,1631.0,24.29902144]
[1693923469951,0.00355017,1631.1,1631.0,31.47937255]
[1693923470526,0.00355017,1631.1,1631.0,41.97070719]
[1693923470960,0.00355017,1631.1,1631.0,43.28870719]
[1693923471663,0.00355017,1631.1,1631.0,42.64532529]
[1693923474869,12.25604,1631.9,1631.2,3.6124]
[1693923475063,12.25604,1631.9,1631.4,18.38898]
[1693923475485,0.00321509,1631.8,1631.5,2.2167]
[1693923475784,0.00321509,1631.8,1631.6,12.25774]
[1693923476183,6.13145509,1631.8,1631.6,12.25774]
[1693923479399,0.00321509,1631.8,1631.6,12.25774]
[1693923479597,0.00321509,1631.8,1631.6,14.483723]
[1693923479972,6.13143509,1631.8,1631.6,12.25774]
[1693923480158,6.13143509,1631.8,1631.6,6.12887]
[1693923480363,6.13143509,1631.8,1631.4,12.25916]
[1693923480364,18.38787509,1631.8,1631.4,12.25916]
[1693923480786,20.01627509,1631.8,1631.4,6.12956]
[1693923480987,6.12895,1631.6,1631.4,6.12956]
[1693923481374,0.00329303,1631.5,1631.4,6.12956]
[1693923482582,0.00329303,1631.5,1631.3,8.30936]
[1693923482784,0.00329303,1631.5,1631.3,14.43927]
[1693923483163,6.13264303,1631.5,1631.3,6.12991]
[1693923483363,6.13264303,1631.5,1631.3,6.62932395]
[1693923483564,6.13264303,1631.5,1631.3,6.12991]
[1693923486502,6.13264303,1631.5,1631.3,12.25999]
[1693923486998,0.00329303,1631.5,1631.3,12.25999]
[1693923488636,3.10329303,1631.5,1631.3,12.25999]
[1693923494514,3.10329303,1631.5,1631.3,18.39007]
[1693923494706,3.10329303,1631.5,1631.3,21.46893796]
[1693923499901,3.10329303,1631.5,1631.3,22.08193771]
[1693923500506,3.10329303,1631.5,1631.4,1.06559328]
[1693923500729,3.10329303,1631.5,1631.4,18.3891]
[1693923500930,3.10329303,1631.5,1631.4,19.45469187]
[1693923501106,3.10329303,1631.5,1631.4,21.31674696]
[1693923501306,3.10329303,1631.5,1631.4,22.38233723]
[1693923501908,3.10329303,1631.5,1631.4,23.98070525]
[1693923503036,3.10329303,1631.5,1631.4,28.36571951]
[1693923503237,3.10329303,1631.5,1631.4,29.62210116]
[1693923503454,3.1,1631.5,1631.4,33.23450116]
[1693923503742,2.46071261,1631.5,1631.4,38.68712619]
[1693923503926,2.46071261,1631.5,1631.4,39.52375515]
[1693923504147,30.45,1631.9,1631.6,3.6124]
[1693923504316,30.45,1631.9,1631.7,20.76930027]
[1693923504507,30.45,1631.9,1631.8,1.9304]
[1693923504707,30.45,1631.9,1631.8,22.97831468]
[1693923507480,84.30635,1632.3,1631.8,22.97831468]
[1693923507646,53.85635,1632.3,1632.0,12.25474]
[1693923508376,53.85635,1632.3,1632.0,6.12737]
[1693923509583,56.95635,1632.3,1632.0,12.25482]
[1693923510095,50.83,1632.3,1632.0,12.25482]
[1693923510543,56.95636,1632.3,1632.0,12.25482]
[1693923510881,53.85636,1632.3,1632.0,12.25482]
[1693923511083,53.85636,1632.3,1632.0,13.03585649]
[1693923511241,47.73,1632.3,1632.0,13.03585649]
[1693923511445,0.00351994,1632.2,1632.0,13.03585649]
[1693923512450,53.85634,1632.3,1632.0,13.03585649]
[1693923512651,47.73,1632.3,1632.0,12.25482]
[1693923513681,47.73351862,1632.3,1632.0,12.25482]
[1693923516690,53.85984862,1632.3,1632.0,12.25482]
[1693923516984,47.73351862,1632.3,1632.0,12.25482]
[1693923519153,53.85989862,1632.3,1632.0,12.25482]
[1693923519353,47.73351862,1632.3,1632.0,12.25482]
[1693923519705,72.11107548,1632.3,1631.8,13.99893168]
[1693923519981,72.11107548,1632.3,1631.8,9.57659778]
[1693923520183,73.66137548,1632.3,1631.8,11.17457125]
[1693923520363,74.97937548,1632.3,1631.8,11.17457125]
[1693923520775,74.97937548,1632.3,1631.8,15.70479778]
[1693923520981,6.13402852,1632.2,1631.8,17.30277125]
[1693923521492,0.00386868,1632.1,1631.8,16.81438347]
[1693923521652,0.00386868,1632.1,1631.8,15.21641]
[1693923521860,12.25818868,1632.1,1631.7,7.2665764]
[1693923522060,12.25818868,1632.1,1631.8,1.06534832]
[1693923522288,14.8418894,1632.1,1631.8,1.06534832]
[1693923523578,14.8418894,1632.1,1631.7,14.35097498]
[1693923524103,12.25818868,1632.1,1631.7,14.35097498]
[1693923524462,12.25432,1632.1,1631.7,14.35097498]
[1693923525373,12.25861669,1632.1,1631.7,14.35097498]
[1693923525773,0.00429669,1632.1,1631.7,21.09194498]
[1693923526401,6.12679,1632.2,1631.8,2.3367]
[1693923526605,6.12679,1632.2,1631.9,6.12775]
[1693923527404,6.13065723,1632.2,1631.9,6.12775]
[1693923528487,6.12679,1632.2,1631.9,6.12775]
[1693923529884,63.51325,1632.3,1631.9,12.25557]
[1693923530077,61.53331,1632.3,1631.9,12.25557]
[1693923530288,61.53331,1632.3,1631.9,14.57822445]
[1693923532519,61.53717689,1632.3,1631.9,14.57822445]
[1693923533514,49.28416689,1632.3,1631.9,20.70604445]
[1693923533691,55.41051689,1632.3,1631.9,20.70604445]
[1693923534088,49.28416689,1632.3,1631.9,20.70604445]
[1693923534292,47.73386689,1632.3,1632.0,2.07060444]
[1693923534610,0.00386689,1632.3,1632.1,12.25414]
[1693923535016,0.00386689,1632.3,1632.1,14.43664]
[1693923535379,0.00386689,1632.3,1632.1,8.30957]
[1693923535615,6.126,1632.4,1632.1,8.30957]
[1693923535780,12.25217,1632.4,1632.1,8.30957]
[1693923536519,0.00352188,1632.3,1632.1,8.30957]
[1693923537487,12.25217,1632.4,1632.1,8.30957]
[1693923537688,13.62399635,1632.4,1632.1,8.30957]
[1693923538496,0.00352641,1632.3,1632.1,8.30957]
[1693923539115,6.12996641,1632.3,1632.0,6.12731]
[1693923539317,12.25640641,1632.3,1632.0,6.12731]
[1693923540537,12.25288,1632.3,1632.0,6.12731]
[1693923541516,12.25639511,1632.3,1632.0,6.12731]
[1693923541905,12.25639511,1632.3,1631.9,10.60738]
[1693923541906,13.07248127,1632.3,1631.9,10.60738]
[1693923542110,20.51692127,1632.3,1631.9,6.12768]
[1693923542310,20.51692127,1632.3,1631.8,6.7700939]
[1693923542507,20.51692127,1632.3,1631.9,1.06529492]
[1693923542692,22.12532127,1632.3,1631.9,1.06529492]
[1693923543288,2.21253213,1632.2,1631.9,1.06529492]